bitfinex-derivatives/quotes_ETHF0:USTF0_20210406
["timestamp","ask_amount","ask_price","bid_price","bid_amount"]
[1617715953101,77.6046,2108.9,2108.6,5.9]
[1617715954701,2.90695,2108.7,2108.6,5.9]
[1617715958108,2.90695,2108.7,2108.0,5.74]
[1617715958309,2.90695,2108.7,2108.6,5.89]
[1617715958709,77.6046,2108.9,2108.4,2.90695]
[1617715958915,77.6046,2108.9,2108.6,5.82]
[1617715959208,77.6046,2108.9,2108.5,3.32]
[1617715959610,77.6046,2108.9,2108.7,5.93]
[1617715960009,77.6046,2108.9,2108.5,5.7]
[1617715960712,2.90695,2108.6,2108.5,5.7]
[1617715963813,2.90695,2108.6,2108.5,7.7]
[1617715964816,0.02739305,2109.5,2108.5,7.7]
[1617715965015,0.02742194,2109.6,2108.5,10.1255]
[1617715966121,61.61682876,2109.7,2108.5,10.1255]
[1617715966819,61.61682876,2109.7,2109.1,2.90695]
[1617715967018,61.61682876,2109.7,2109.1,5.82475]
[1617715967423,61.61682876,2109.7,2109.2,5.89]
[1617715968821,2.90695,2109.3,2109.2,5.89]
[1617715972527,2.90695,2109.3,2109.2,7.89]
[1617715972727,2.90695,2109.3,2109.2,5.89]
[1617715973328,2.90695,2109.3,2109.2,35.89]
[1617715973626,0.02744704,2110.0,2109.7,69.5985]
[1617715973828,0.02744704,2110.0,2109.7,103.7769]
[1617715974033,0.02746171,2110.3,2109.8,5.89]
[1617715974229,0.02746171,2110.3,2109.9,30.0]
[1617715974529,2.59846947,2110.4,2109.9,32.0]
[1617715974730,2.571,2110.4,2110.0,5.87]
[1617715974929,2.571,2110.4,2110.3,2.90695]
[1617715975233,2.571,2110.4,2110.3,11.47345]
[1617715976230,2.571,2110.4,2110.3,13.47345]
[1617715976430,2.93443326,2110.7,2110.6,70.6719]
[1617715976732,2.90695,2110.7,2110.6,76.6419]
[1617715976931,0.02751097,2111.0,2110.6,79.54885]
[1617715977131,0.02751871,2111.1,2110.6,79.54885]
[1617715977332,2.90695,2111.4,2110.6,79.54885]
[1617715978837,2.93439153,2111.4,2110.6,79.54885]
[1617715979036,2.93439153,2111.4,2111.3,2.90695]
[1617715979337,2.90695,2111.4,2111.3,8.79695]
[1617715979537,2.90695,2111.4,2111.3,5.89]
[1617715979739,2.90695,2111.4,2110.7,5.91]
[1617715979941,5.2672964,2111.4,2110.7,5.91]
[1617715980243,5.2672964,2111.4,2111.3,5.72]
[1617715980441,5.2672964,2111.4,2110.8,5.78]
[1617715980640,72.6442,2111.3,2110.8,5.78]
[1617715980940,72.6442,2111.3,2111.0,2.90695]
[1617715981340,72.6442,2111.3,2111.1,3.09]
[1617715983142,2.90695,2111.4,2111.1,3.09]
[1617715987146,2.90695,2111.4,2111.3,2.90695]
[1617715987447,2.90695,2111.4,2111.3,11.23565]
[1617715988548,2.90695,2111.4,2111.3,75.59945]
[1617715989047,2.90695,2111.7,2111.3,75.59945]
[1617715990855,2.90695,2111.7,2111.4,2.0]
[1617715991055,2.90695,2111.7,2111.6,2.90695]
[1617715991255,2.571,2111.9,2111.6,2.90695]
[1617715991456,2.571,2111.9,2111.6,8.84695]
[1617715998775,2.571,2111.9,2111.6,11.53415]
[1617715999578,2.571,2111.9,2111.6,13.53415]
[1617716000278,2.90695,2112.0,2111.6,13.53415]
[1617716000682,2.90695,2112.0,2111.6,11.53415]
[1617716001279,2.90695,2112.0,2111.9,2.90695]
[1617716001678,2.90695,2112.0,2111.9,8.64695]
[1617716002378,3.84285,2112.0,2111.9,8.64695]
[1617716003883,75.5656,2112.8,2111.9,8.64695]
[1617716004082,75.5656,2112.8,2111.9,11.05325]
[1617716005185,2.90695,2112.0,2111.9,11.05325]
[1617716006787,2.90695,2112.0,2111.9,8.64695]
[1617716007588,2.90695,2112.0,2111.9,66.95365]
[1617716007886,8.0649,2112.9,2111.9,66.95365]
[1617716007887,5.098,2112.9,2111.9,66.95365]
[1617716008087,5.098,2112.9,2111.9,69.58965]
[1617716009187,5.098,2112.9,2111.9,64.0467]
[1617716009386,2.90695,2112.0,2111.9,64.0467]
[1617716009587,2.90695,2112.0,2111.9,5.74]
[1617716009588,5.04285,2112.0,2111.9,5.74]
[1617716009988,5.04285,2112.0,2111.7,5.87]
[1617716010193,5.04285,2112.0,2111.9,5.78]
[1617716010602,5.04285,2112.0,2111.7,5.78]
[1617716010792,5.04285,2112.0,2111.9,5.76]
[1617716011195,5.04285,2112.0,2111.7,5.9]
[1617716011395,5.04285,2112.0,2111.9,5.72]
[1617716011698,5.04285,2112.0,2111.8,4.81]
[1617716012094,5.04285,2112.0,2111.9,4.79]
[1617716012296,5.04285,2112.0,2111.6,76.5072]
[1617716012493,5.04285,2112.0,2111.8,5.84]
[1617716012694,5.04285,2112.0,2111.9,5.87]
[1617716012895,5.04285,2112.0,2111.6,76.5072]
[1617716013195,5.04285,2112.0,2111.8,5.94]
[1617716013396,5.04285,2112.0,2111.7,5.77]
[1617716013595,5.04285,2112.0,2111.9,5.94]
[1617716013795,2.90695,2112.0,2111.9,5.94]
[1617716013996,2.90695,2112.0,2111.7,5.78]
[1617716014200,2.90695,2112.0,2111.9,5.84]
[1617716014596,2.90695,2112.0,2111.7,5.78]
[1617716014796,2.90695,2112.0,2111.9,5.77]
[1617716015203,2.90695,2112.0,2111.7,5.74]
[1617716015700,2.90695,2112.0,2111.9,5.73]
[1617716016000,2.90695,2112.0,2111.9,7.7771]
[1617716016403,2.90695,2112.0,2111.9,2.0271]
[1617716016602,2.90695,2112.0,2111.9,7.8771]
[1617716017502,2.90695,2112.0,2111.9,10.78405]
[1617716023312,2.90695,2112.0,2111.9,8.75695]
[1617716037934,5.63305,2112.0,2111.9,8.75695]
[1617716038937,2.90695,2112.0,2111.9,8.75695]
[1617716040435,2.90695,2112.0,2111.9,11.18775]
[1617716041538,2.90695,2112.0,2111.9,8.75695]
[1617716043253,5.53345,2112.0,2111.9,8.75695]
[1617716043743,59.07635,2112.0,2111.9,8.75695]
[1617716044843,5.53345,2112.0,2111.9,8.75695]
[1617716045346,5.53345,2112.0,2111.9,5.85]
[1617716045643,5.53345,2112.0,2111.8,68.3053]
[1617716045943,5.53345,2112.0,2111.9,5.94]
[1617716046743,2.90695,2112.0,2111.9,5.94]
[1617716052048,4.88445,2112.0,2111.9,5.94]
[1617716053652,2.90695,2112.0,2111.9,5.94]
[1617716054652,3.85825,2112.0,2111.9,5.94]
[1617716054852,2.90695,2112.0,2111.9,5.94]
[1617716055153,3.18217595,2112.0,2111.9,5.94]
[1617716056254,2.90695,2112.0,2111.9,5.94]
[1617716056457,3.86155,2112.0,2111.9,5.94]
[1617716056656,3.86155,2112.0,2111.9,6.8817]
[1617716057056,2.90695,2112.0,2111.9,5.94]
[1617716057860,3.18236964,2112.0,2111.9,5.94]
[1617716058059,4.13796964,2112.0,2111.9,5.94]
[1617716058258,3.18236964,2112.0,2111.9,5.94]
[1617716062867,5.27226964,2112.0,2111.9,5.94]
[1617716063869,4.99685,2112.0,2111.9,5.94]
[1617716064969,2.90695,2112.0,2111.9,7.9538]
[1617716065370,2.90695,2112.0,2111.9,2.0138]
[1617716065570,2.96209547,2112.0,2111.9,2.0138]
[1617716065772,2.96209547,2112.0,2111.9,7.7938]
[1617716066371,2.96209547,2112.0,2111.9,73.6983]
[1617716066571,2.93452818,2112.0,2111.9,73.6983]
[1617716067471,3.18321689,2112.0,2111.9,73.6983]
[1617716068974,2.90695,2112.0,2111.9,73.6983]
[1617716069374,3.18306512,2112.0,2111.9,73.6983]
[1617716069774,2.90695,2112.0,2111.9,73.6983]
[1617716070177,3.3486964,2112.0,2111.9,73.6983]
[1617716070578,3.18308788,2112.0,2111.9,73.6983]
[1617716071778,3.18308788,2112.0,2111.9,76.60525]
[1617716073883,2.90695,2112.0,2111.9,76.60525]
[1617716074484,3.1828669,2112.0,2111.9,76.60525]
[1617716077487,3.1828669,2112.0,2111.9,10.70075]
[1617716077688,5.5228669,2112.0,2111.9,8.68695]
[1617716077988,77.6795669,2112.0,2111.9,8.68695]
[1617716078487,77.40365,2112.0,2111.9,8.68695]
[1617716078687,5.24695,2112.0,2111.9,8.68695]
[1617716078887,5.68826617,2112.0,2111.9,8.68695]
[1617716079189,3.34826617,2112.0,2111.9,8.68695]
[1617716079388,3.18281242,2112.0,2111.9,8.68695]
[1617716082094,3.34856924,2112.0,2111.9,8.68695]
[1617716085100,3.34856924,2112.0,2111.9,11.31815]
[1617716087302,3.18283233,2112.0,2111.9,11.31815]
[1617716088504,2.90695,2112.0,2111.9,11.31815]
[1617716090804,0.27589334,2112.1,2111.9,43.31815]
[1617716091004,0.05519573,2112.0,2111.9,43.31815]
[1617716091206,0.27597867,2112.2,2112.1,69.7253]
[1617716091407,0.27606449,2112.3,2112.1,69.7253]
[1617716091606,0.27606449,2112.3,2112.1,75.6653]
[1617716091807,0.27606846,2112.4,2112.3,2.90695]
[1617716092109,2.90695,2112.5,2112.3,4.90695]
[1617716092306,2.90695,2112.5,2112.3,10.62695]
[1617716092708,2.90695,2112.5,2112.3,40.62695]
[1617716095211,0.02757116,2112.8,2112.3,40.62695]
[1617716095812,2.5985629,2112.9,2112.8,2.90695]
[1617716096013,2.5985629,2112.9,2112.8,4.77455]
[1617716096219,2.5985629,2112.9,2112.8,6.77455]
[1617716096413,0.0275629,2112.9,2112.8,12.73455]
[1617716097916,0.027569,2113.0,2112.8,12.73455]
[1617716098417,0.027569,2113.0,2112.8,42.73455]
[1617716100320,0.027571,2113.1,2112.8,42.73455]
[1617716102121,0.02758353,2113.2,2112.8,42.73455]
[1617716102620,0.0275828,2113.1,2112.8,42.73455]
[1617716104121,0.02752228,2113.5,2112.8,42.73455]
[1617716104521,2.90695,2113.7,2112.8,42.73455]
[1617716104522,0.02752887,2113.6,2112.8,42.73455]
[1617716104923,0.02753057,2113.7,2112.8,42.73455]
[1617716105222,0.02752844,2113.6,2113.1,32.0]
[1617716105521,0.02752844,2113.6,2113.1,37.82]
[1617716105929,0.02752844,2113.6,2113.5,2.90695]
[1617716106123,0.02752995,2113.7,2113.5,7.12665]
[1617716106423,2.571,2113.9,2113.5,13.05665]
[1617716107928,2.571,2113.9,2113.8,2.90695]
[1617716108328,2.571,2113.9,2113.8,8.83695]
[1617716109529,2.90695,2114.0,2113.8,8.83695]
[1617716110630,2.90695,2114.0,2113.8,38.83695]
[1617716110830,2.90695,2114.0,2113.8,40.83695]
[1617716114635,2.90695,2114.0,2113.8,10.83695]
[1617716115240,2.90695,2114.0,2113.8,8.83695]
[1617716115740,5.82975,2114.0,2113.8,8.83695]
[1617716118040,2.90695,2114.0,2113.8,8.83695]
[1617716118644,2.90695,2114.0,2113.8,38.83695]
[1617716118841,2.90695,2114.0,2113.8,40.83695]
[1617716119243,3.0,2114.7,2113.8,40.83695]
[1617716119544,3.0,2114.7,2113.9,95.4719]
[1617716119745,3.0,2114.7,2113.8,40.83695]
[1617716120145,3.0,2114.7,2114.6,2.90695]
[1617716120646,3.0,2114.7,2114.6,8.74695]
[1617716122045,5.90695,2114.7,2114.6,8.74695]
[1617716123847,4.90695,2114.7,2114.6,8.74695]
[1617716124248,4.90695,2114.7,2114.6,11.00965]
[1617716125151,2.0,2114.7,2114.6,10.00965]
[1617716125750,2.571,2115.6,2114.6,10.00965]
[1617716126151,2.571,2115.6,2115.3,69.7478]
[1617716126551,2.571,2115.6,2115.4,5.87]
[1617716127252,2.571,2115.6,2115.4,3.87]
[1617716128153,2.90695,2115.5,2115.4,3.87]
[1617716130661,68.66025,2115.5,2115.4,3.87]
[1617716132560,2.90695,2115.5,2115.4,3.87]
[1617716134465,2.90695,2115.5,2115.4,3.6263]
[1617716138270,32.90695,2115.5,2115.4,3.6263]
[1617716140172,32.93429862,2115.5,2115.4,3.6263]
[1617716140571,32.93429862,2115.5,2115.4,0.0001]
[1617716140775,56.9502,2115.4,2113.5,2.0]
[1617716140972,30.0,2115.3,2113.5,2.0]
[1617716141174,33.12732825,2115.3,2113.5,2.0]
[1617716141373,33.12732825,2115.3,2113.6,5.75]
[1617716141774,0.02732491,2115.2,2113.2,5.83]
[1617716141974,0.02732491,2115.2,2113.1,78.0095]
[1617716141975,0.02731653,2115.1,2113.7,5.68]
[1617716142175,2.90695,2113.8,2113.7,5.68]
[1617716142374,5.64975,2113.8,2113.2,8.62695]
[1617716142674,5.64975,2113.8,2113.2,2.90695]
[1617716142875,5.64975,2113.8,2113.3,5.7]
[1617716143277,5.64975,2113.8,2113.6,59.9819]
[1617716143685,5.64975,2113.8,2113.7,5.71]
[1617716147579,78.31355,2113.8,2113.3,5.81]
[1617716147781,78.31355,2113.8,2113.7,5.94]
[1617716148081,78.31355,2113.8,2113.3,5.73]
[1617716148382,78.31355,2113.8,2113.7,5.76]
[1617716148581,75.4066,2113.8,2113.7,5.76]
[1617716148781,75.4066,2113.8,2113.3,5.9]
[1617716148981,75.4066,2113.8,2113.7,5.68]
[1617716149381,75.4066,2113.8,2113.3,5.93]
[1617716149682,75.4066,2113.8,2113.7,5.87]
[1617716149982,75.4066,2113.8,2113.3,5.82]
[1617716150382,75.4066,2113.8,2113.7,5.71]
[1617716150582,75.4066,2113.8,2113.2,2.90695]
[1617716150583,78.31355,2113.8,2113.3,5.68]
[1617716150985,78.31355,2113.8,2113.7,5.82]
[1617716151184,78.31355,2113.8,2113.3,5.93]
[1617716151583,78.31355,2113.8,2113.7,5.73]
[1617716151784,78.31355,2113.8,2113.2,2.90695]
[1617716151984,78.31355,2113.8,2113.3,5.73]
[1617716152585,2.90695,2113.4,2113.3,5.73]
[1617716158290,2.90695,2113.4,2112.9,5.7]
[1617716158695,2.90695,2113.4,2113.3,5.67]
[1617716158890,75.4066,2113.8,2112.9,5.88]
[1617716159591,76.3386,2113.8,2112.9,5.88]
[1617716159791,75.4066,2113.8,2112.9,5.88]
[1617716160992,2.90695,2113.0,2112.9,5.88]
[1617716161194,4.81315,2113.0,2112.9,5.88]
[1617716162596,65.8477,2112.9,2112.6,5.79]
[1617716162796,2.90695,2112.7,2112.1,3.99]
[1617716163095,2.90695,2112.7,2112.0,2.90695]
[1617716163293,2.90695,2112.7,2112.3,5.82]
[1617716163696,2.90695,2112.7,2112.0,2.90695]
[1617716164094,2.90695,2112.7,2112.1,5.68]
[1617716164295,2.90695,2112.7,2111.6,5.84]
[1617716164696,2.90695,2112.7,2112.2,5.83]
[1617716164895,2.90695,2112.3,2111.7,2.90695]
[1617716165097,5.90435,2112.3,2111.7,2.90695]
[1617716165296,5.90435,2112.3,2111.8,5.88]
[1617716166799,2.90695,2111.9,2111.8,5.88]
[1617716168602,81.06795,2111.9,2111.8,5.88]
[1617716169007,2.90695,2111.9,2111.8,5.88]
[1617716169202,2.90695,2111.9,2111.2,2.90695]
[1617716169203,2.90695,2111.9,2111.3,5.93]
[1617716169411,2.90695,2111.9,2111.4,59.6248]
[1617716169603,2.90695,2111.9,2111.8,5.78]
[1617716169904,2.90695,2111.9,2111.5,3.36]
[1617716170210,60.7553,2111.7,2111.3,5.95]
[1617716170406,63.0445,2111.7,2111.6,5.83]
[1617716170609,63.0445,2111.7,2111.3,5.89]
[1617716170809,2.90695,2111.4,2111.3,5.89]
[1617716171009,2.90695,2111.4,2111.2,2.90695]
[1617716171409,2.90695,2111.4,2111.3,5.96]
[1617716172111,55.4733,2111.3,2111.0,5.71]
[1617716172410,55.4733,2111.3,2110.7,5.78]
[1617716172611,55.4733,2111.3,2111.1,5.69]
[1617716172810,55.4733,2111.3,2110.6,13.6799]
[1617716173011,55.4733,2111.3,2110.8,8.66695]
[1617716173210,55.4733,2111.3,2111.2,5.79]
[1617716173511,2.90695,2111.4,2110.9,5.97]
[1617716173710,2.90695,2111.4,2111.2,5.75]
[1617716174010,2.90695,2111.4,2110.8,2.90695]
[1617716174213,2.90695,2111.4,2110.9,5.84]
[1617716174410,2.90695,2111.4,2111.3,5.95]
[1617716174611,2.90695,2111.4,2110.9,5.7]
[1617716175011,2.90695,2111.0,2110.8,2.90695]
[1617716175412,2.90695,2111.0,2110.9,5.81]
[1617716181821,78.35275,2111.0,2110.9,5.81]
[1617716185923,78.35275,2111.0,2110.3,5.87]
[1617716186122,81.12165,2111.0,2110.3,5.87]
[1617716186324,5.67585,2111.0,2110.9,5.75]
[1617716186624,55.9008,2110.9,2110.3,5.75]
[1617716186824,55.9008,2110.9,2110.2,1.0]
[1617716187026,2.90695,2110.4,2110.3,2.90695]
[1617716187226,5.80695,2110.4,2110.3,2.90695]
[1617716187425,5.80695,2110.4,2110.3,8.72695]
[1617716188526,5.80695,2110.4,2110.3,5.82]
[1617716196532,2.90695,2110.4,2110.3,5.82]
[1617716206144,2.90695,2110.4,2110.3,74.0281]
[1617716206542,2.90695,2110.4,2110.3,76.0281]
[1617716207947,3.85415,2110.4,2110.3,76.0281]
[1617716208145,2.90695,2110.4,2110.3,76.0281]
[1617716208447,2.90695,2110.4,2110.3,5.82]
[1617716208848,2.90695,2110.4,2110.3,7.82]
[1617716213950,66.164,2111.6,2110.3,85.9294]
[1617716215252,66.164,2111.6,2110.8,2.90695]
[1617716215755,66.164,2111.6,2110.9,5.69]
[1617716217454,2.90695,2111.0,2110.9,5.69]
[1617716219756,2.90695,2111.0,2110.9,6.6466]
[1617716219957,2.90695,2111.0,2110.9,5.69]
[1617716220257,2.90695,2111.0,2110.9,7.69]
[1617716220661,2.90695,2111.0,2110.9,5.69]
[1617716224664,69.168,2110.9,2110.5,5.81]
[1617716224863,69.168,2110.9,2110.4,13.3055]
[1617716225064,69.168,2110.9,2110.6,5.79]
[1617716225465,2.90695,2110.7,2110.5,5.91]
[1617716225667,5.54005,2110.7,2110.4,16.21245]
[1617716225866,5.54005,2110.7,2110.4,13.3055]
[1617716226066,5.54005,2110.7,2110.5,5.76]
[1617716227769,5.54005,2110.7,2110.2,2.90695]
[1617716227967,5.54005,2110.7,2110.6,5.89]
[1617716228268,5.54005,2110.7,2110.2,2.90695]
[1617716228466,5.54005,2110.7,2110.4,5.94]
[1617716228870,5.54005,2110.7,2110.3,5.92]
[1617716229072,5.54005,2110.7,2110.2,2.90695]
[1617716229371,5.54005,2110.7,2110.3,5.82]
[1617716229571,5.54005,2110.7,2110.6,67.5558]
[1617716229770,5.54005,2110.7,2110.6,73.2858]
[1617716230271,5.54005,2110.7,2110.6,67.5558]
[1617716230470,5.54005,2110.7,2110.6,73.2758]
[1617716231173,2.90695,2110.7,2110.6,73.2758]
[1617716233470,2.90695,2110.7,2110.6,76.18275]
[1617716233873,2.90695,2110.7,2110.6,8.62695]
[1617716242180,2.90695,2110.7,2110.6,5.72]
[1617716242582,70.7048,2110.6,2110.2,5.9]
[1617716242981,70.7048,2110.6,2110.1,1.0]
[1617716243181,70.7048,2110.6,2110.3,5.8]
[1617716243682,2.90695,2110.4,2110.2,5.73]
[1617716243882,5.15635,2110.4,2110.1,1.0]
[1617716244082,5.15635,2110.4,2110.3,5.93]
[1617716244482,5.15635,2110.4,2110.2,5.91]
[1617716244782,5.15635,2110.4,2110.3,5.81]
[1617716244982,5.15635,2110.4,2110.2,5.87]
[1617716245284,5.15635,2110.4,2110.3,5.96]
[1617716245684,5.15635,2110.4,2110.2,5.8]
[1617716245884,5.15635,2110.4,2110.3,5.87]
[1617716246185,5.15635,2110.4,2110.2,5.72]
[1617716246585,5.15635,2110.4,2110.3,5.71]
[1617716246787,5.15635,2110.4,2110.1,1.0]
[1617716246986,5.15635,2110.4,2110.2,5.69]
[1617716247186,5.15635,2110.4,2110.3,5.8]
[1617716247586,5.15635,2110.4,2110.2,5.79]
[1617716248588,0.02749101,2110.3,2110.2,5.79]
[1617716249392,5.15635,2110.4,2110.2,5.79]
[1617716249393,5.18384765,2110.4,2110.2,5.79]
[1617716250194,0.02749578,2110.3,2110.2,5.79]
[1617716250997,5.15635,2110.4,2110.2,5.79]
[1617716260209,2.90695,2110.4,2110.2,5.79]
[1617716275626,65.5158,2110.2,2110.1,1.0]
[1617716276127,65.5158,2110.2,2110.1,6.69]
[1617716279127,2.90695,2110.4,2110.1,6.69]
[1617716279527,0.02,2110.3,2110.1,6.69]
[1617716280730,2.90695,2110.4,2110.1,6.69]
[1617716281032,70.4459,2110.2,2110.1,6.69]
[1617716282832,30.0,2110.2,2108.6,2.0]
[1617716283130,30.0,2110.0,2107.4,13.1977]
[1617716283331,67.9998,2108.3,2107.4,13.1977]
[1617716283642,70.8471,2108.3,2107.5,5.85]
[1617716283932,70.8471,2108.3,2107.5,7.85]
[1617716284138,70.8471,2108.3,2107.7,2.90695]
[1617716284542,70.8471,2108.3,2107.8,5.85]
[1617716284831,2.8473,2108.3,2107.8,5.85]
[1617716286234,2.90695,2107.9,2107.8,5.85]
[1617716303349,2.90695,2107.9,2107.6,5.91]
[1617716303849,2.90695,2107.9,2107.8,5.89]
[1617716304050,2.90695,2107.9,2107.6,5.93]
[1617716304250,0.9379,2108.1,2107.6,5.93]
[1617716304449,2.8473,2108.3,2107.8,5.8]
[1617716304653,0.938,2108.9,2107.6,5.73]
[1617716304850,2.4879,2108.3,2107.6,5.73]
[1617716305551,64.0875,2107.8,2107.6,5.73]
[1617716306351,2.90695,2107.7,2107.6,5.73]
[1617716312464,2.90695,2107.7,2107.6,8.63695]
[1617716317765,2.90695,2107.7,2107.6,10.63695]
[1617716320671,2.90695,2107.7,2107.6,8.63695]
[1617716322069,3.86875,2107.7,2107.6,8.63695]
[1617716322271,2.90695,2107.7,2107.6,8.63695]
[1617716325572,3.85995,2107.7,2107.6,8.63695]
[1617716325871,2.90695,2107.7,2107.6,8.63695]
[1617716331279,2.90695,2107.7,2107.6,10.63695]
[1617716339794,2.90695,2107.7,2107.6,8.63695]
[1617716346000,2.90695,2107.7,2107.6,5.73]
[1617716346400,2.90695,2107.7,2107.5,5.97]
[1617716346601,60.7751,2107.6,2107.5,5.97]
[1617716346804,60.7751,2107.6,2107.4,2.0]
[1617716347001,60.7751,2107.6,2107.5,5.97]
[1617716347801,61.7284,2107.6,2107.5,5.97]
[1617716351301,61.7284,2107.6,2107.5,5.96]
[1617716352706,60.7751,2107.6,2107.5,5.96]
[1617716352905,2.90695,2107.7,2107.5,5.96]
[1617716353305,61.28175,2107.7,2107.5,5.96]
[1617716355305,2.90695,2107.7,2107.5,5.96]
[1617716356306,2.90695,2107.7,2107.5,5.3519]
[1617716356609,2.90695,2107.7,2107.5,4.5299]
[1617716357510,2.90695,2107.7,2107.5,3.5662]
[1617716357809,32.90695,2107.7,2107.5,3.1075]
[1617716358009,2.90695,2107.7,2107.5,2.8966]
[1617716358309,32.90695,2107.7,2107.5,2.8966]
[1617716358509,2.90695,2107.7,2107.5,2.5692]
[1617716358709,2.90695,2107.7,2107.5,1.8631]
[1617716359113,32.90695,2107.7,2107.5,1.8631]
[1617716359313,32.90695,2107.7,2107.5,1.0452]
[1617716359515,32.90695,2107.7,2107.5,0.09]
[1617716359815,66.0673,2107.5,2107.3,0.7669]
[1617716360112,97.0052,2107.5,2107.4,5.5419]
[1617716361113,97.0052,2107.5,2107.3,0.2698]
[1617716361415,97.0052,2107.5,2105.8,2.0]
[1617716361416,70.4304,2107.3,2105.8,2.0]
[1617716361616,30.0,2107.2,2104.6,2.0]
[1617716362015,30.0,2107.2,2105.9,5.7]
[1617716362215,30.0,2107.2,2104.6,7.86]
[1617716362416,30.0,2107.2,2104.7,5.9]
[1617716362715,2.90695,2106.1,2106.0,5.84]
[1617716362916,5.62925,2106.1,2105.1,2.0]
[1617716363316,5.62925,2106.1,2105.1,2.49]
[1617716364016,6.57675,2106.1,2105.1,2.49]
[1617716364216,6.57675,2106.1,2105.1,0.49]
[1617716364618,6.57675,2106.1,2104.6,7.7]
[1617716364819,65.819,2105.1,2104.8,2.90695]
[1617716365319,65.819,2105.1,2104.9,5.74]
[1617716366819,2.90695,2105.0,2104.9,5.74]
[1617716367018,2.90695,2105.0,2104.7,5.78]
[1617716367218,3.84635,2105.0,2104.9,5.84]
[1617716367420,2.90695,2105.0,2104.9,5.84]
[1617716367624,78.8209,2104.9,2104.8,5.76]
[1617716367819,78.8209,2104.9,2104.7,5.85]
[1617716368019,78.8209,2104.9,2104.7,2.0]
[1617716368221,78.8209,2104.9,2104.8,5.89]
[1617716368422,78.8209,2104.9,2104.5,4.0]
[1617716368822,78.8209,2104.9,2104.8,5.76]
[1617716369222,78.8209,2104.9,2104.5,4.0]
[1617716369422,78.8209,2104.9,2104.8,5.92]
[1617716369822,78.8209,2104.9,2104.6,2.0]
[1617716370023,78.8209,2104.9,2104.8,5.76]
[1617716370426,78.8209,2104.9,2104.7,5.9]
[1617716370623,78.8209,2104.9,2104.8,5.96]
[1617716371025,78.8209,2104.9,2104.6,2.0]
[1617716371224,78.8209,2104.9,2104.8,5.79]
[1617716371624,78.8209,2104.9,2104.5,4.0]
[1617716371824,78.8209,2104.9,2104.8,5.74]
[1617716372225,78.8209,2104.9,2104.5,4.0]
[1617716372525,78.8209,2104.9,2104.8,5.7]
[1617716372728,78.8209,2104.9,2104.7,2.0]
[1617716372926,81.72785,2104.9,2104.7,2.0]
[1617716373127,81.72785,2104.9,2104.8,5.83]
[1617716375327,2.90695,2104.9,2104.8,5.83]
[1617716375828,0.02731212,2106.8,2104.8,38.2717]
[1617716376027,68.1654,2106.6,2104.8,32.4417]
[1617716376228,68.1654,2106.6,2104.9,7.85]
[1617716376430,68.1654,2106.6,2105.0,30.0]
[1617716376630,68.1654,2106.6,2105.1,2.0]
[1617716376829,68.1654,2106.6,2106.0,2.90695]
[1617716377031,0.02735186,2107.5,2106.1,2.0]
[1617716377231,64.4563,2107.4,2106.1,2.0]
[1617716377431,64.4563,2107.4,2106.1,7.88]
[1617716378432,64.4563,2107.4,2106.1,37.88]
[1617716378833,2.90695,2106.2,2106.1,37.88]
[1617716380233,2.90695,2106.2,2106.1,7.88]
[1617716381035,62.12025,2106.2,2106.1,7.88]
[1617716381936,2.90695,2106.2,2104.6,0.9504]
[1617716382136,53.9402,2106.1,2104.6,2.9504]
[1617716382337,53.9402,2106.1,2104.6,2.0]
[1617716382536,53.9402,2106.1,2104.7,7.7]
[1617716382837,53.9402,2106.1,2104.7,5.7]
[1617716383040,2.90695,2104.8,2104.4,2.90695]
[1617716383238,5.29015,2104.8,2104.4,2.90695]
[1617716383440,5.29015,2104.8,2104.5,5.81]
[1617716383638,5.29015,2104.8,2104.5,9.81]
[1617716384239,5.29015,2104.8,2104.6,2.0]
[1617716384841,5.29015,2104.8,2104.7,7.84]
[1617716385442,5.29015,2104.8,2104.7,2.0]
[1617716385644,5.29015,2104.8,2104.7,7.84]
[1617716385842,5.29015,2104.8,2104.7,5.84]
[1617716386241,5.29015,2104.8,2104.6,5.84]
[1617716386445,5.29015,2104.8,2104.7,5.91]
[1617716386641,6.23985,2104.8,2104.7,5.91]
[1617716386841,6.23985,2104.8,2104.7,2.0]
[1617716387142,6.23985,2104.8,2104.7,7.85]
[1617716387743,6.23985,2104.8,2104.7,6.7862]
[1617716387942,6.23985,2104.8,2104.7,0.9362]
[1617716388244,5.29015,2104.8,2104.7,5.98]
[1617716388845,2.90695,2104.8,2104.7,5.98]
[1617716390447,2.90695,2104.8,2104.6,5.94]
[1617716390651,4.95775,2104.8,2104.7,5.87]
[1617716391148,4.95775,2104.8,2104.7,2.90695]
[1617716391350,4.95775,2104.8,2104.7,8.72695]
[1617716392360,4.95775,2104.8,2104.7,9.68155]